lending/lending_fUSD_20240111
["ID","MTS","AMOUNT","RATE_DAILY","PERIOD"]
[311198216,1704979860270,-500.0,0.00040821,4]
[311198217,1704979860280,-500.0,0.00040821,4]
[311198218,1704979860289,-500.0,0.00040821,4]
[311198219,1704979860299,-500.0,0.00040821,4]
[311198220,1704979860310,-794.87,0.00040821,4]
[311198221,1704979860320,-624.68,0.00040821,4]
[311198222,1704979860329,-502.12,0.00040821,4]
[311198223,1704979860339,-660.97,0.00040821,4]
[311198224,1704979860348,-500.0,0.00040821,4]
[311198225,1704979860358,-500.0,0.00040821,4]
[311198226,1704979860367,-500.0,0.00040821,4]
[311198227,1704979860377,-444.04,0.00040821,4]
[311198228,1704979860386,-500.0,0.00040821,4]
[311198229,1704979860397,-500.0,0.00040821,4]
[311198230,1704979860406,-500.0,0.00040821,4]
[311198231,1704979860416,-500.0,0.00040821,4]
[311198232,1704979860425,-500.0,0.00040821,4]
[311198233,1704979860437,-500.0,0.00040821,4]
[311198234,1704979860447,-1164.67,0.00040821,4]
[311198235,1704979860457,-500.0,0.00040821,4]
[311198236,1704979860467,-1105.32,0.00040821,4]
[311198237,1704979860476,-854.35,0.00040821,4]
[311198238,1704979860485,-500.0,0.00040821,4]
[311198239,1704979860495,-500.0,0.00040821,4]
[311198240,1704979860505,-500.0,0.00040821,4]
[311198241,1704979860514,-500.0,0.00040821,4]
[311198242,1704979860524,-500.0,0.00040821,4]
[311198243,1704979860533,-500.0,0.00040821,4]
[311198244,1704979860543,-286.83,0.00040821,4]
[311198245,1704979860553,-500.0,0.00040821,4]
[311198246,1704979860563,-377.88,0.00040821,4]
[311198247,1704979860573,-500.0,0.00040821,4]
[311198248,1704979860582,-500.0,0.00040821,4]
[311198249,1704979860592,-500.0,0.00040821,4]
[311198250,1704979860601,-500.0,0.00040821,4]
[311198251,1704979860611,-500.0,0.00040821,4]
[311198252,1704979860621,-500.0,0.00040821,4]
[311198253,1704979860631,-2484.37,0.00040821,4]
[311198254,1704979860642,-500.0,0.00040821,4]
[311198255,1704979860651,-500.0,0.00040821,4]
[311198256,1704979860661,-1838.54,0.00040821,4]
[311198257,1704979860670,-500.0,0.00040821,4]
[311198258,1704979860680,-500.0,0.00040821,4]
[311198259,1704979860693,-835.03,0.00040821,4]
[311198260,1704979860703,-538.11,0.00040821,4]
[311198261,1704979860713,-500.0,0.00040821,4]
[311198262,1704979860723,-502.96,0.00040821,4]
[311198263,1704979860733,-513.38,0.00040821,4]
[311198264,1704979860743,-500.0,0.00040821,4]
[311198265,1704979860753,-500.0,0.00040821,4]
[311198266,1704979860763,-580.95,0.00040821,4]
[311198267,1704979860773,-1413.2,0.00040821,4]
[311198268,1704979860783,-500.0,0.00040821,4]
[311198269,1704979860793,-894.67,0.00040821,4]
[311198270,1704979860802,-1588.08,0.00040821,4]
[311198271,1704979860812,-500.0,0.00040821,5]
[311198272,1704979860822,-500.0,0.00040821,4]
[311198273,1704979860831,-534.67,0.00040821,4]
[311198274,1704979860841,-818.97,0.00040821,4]
[311198275,1704979860851,-557.1,0.00040821,4]
[311198276,1704979860860,-4016.32,0.00040821,4]
[311198277,1704979860870,-500.0,0.00040821,4]
[311198278,1704979860879,-500.0,0.00040821,4]
[311198279,1704979860893,-500.0,0.00040821,4]
[311198280,1704979860903,-500.0,0.00040821,4]
[311198281,1704979860913,-500.0,0.00040821,4]
[311198282,1704979860923,-500.0,0.00040821,4]
[311198283,1704979860937,-500.0,0.00040821,4]
[311198284,1704979860948,-630.06,0.00040821,4]
[311198285,1704979860958,-1262.12,0.00040821,4]
[311198286,1704979860968,-1205.92,0.00040821,4]
[311198287,1704979860979,-500.0,0.00040821,4]
[311198288,1704979860988,-500.0,0.00040821,4]
[311198289,1704979860998,-500.0,0.00040821,4]
[311198290,1704979861009,-500.0,0.00040821,4]
[311198291,1704979861019,-500.0,0.00040821,4]
[311198292,1704979861029,-500.0,0.00040821,4]
[311198293,1704979861039,-936.41,0.00040821,4]
[311198294,1704979861048,-500.0,0.00040821,4]
[311198295,1704979861058,-500.0,0.00040821,4]
[311198296,1704979861068,-684.95,0.00040821,4]
[311198297,1704979861078,-338.87,0.00040821,4]
[311198298,1704979861088,-500.0,0.00040821,5]
[311198299,1704979861098,-5271.68,0.00040821,4]
[311198300,1704979861107,-500.0,0.00040821,4]
[311198301,1704979861117,-500.0,0.00040821,4]
[311198302,1704979861127,-540.1,0.00040821,4]
[311198303,1704979861136,-500.0,0.00040821,4]
[311198304,1704979861146,-1590.5,0.00040821,4]
[311198305,1704979861155,-592.57866878,0.00040821,4]
[311198306,1704979861165,-500.0,0.00040821,4]
[311198307,1704979861175,-747.7,0.00040821,4]
[311198308,1704979861188,-1530.69,0.00040821,4]
[311198309,1704979861197,-500.0,0.00040821,4]
[311198310,1704979861207,-7811.0,0.00040838,30]
[311198311,1704979861216,-353.0,0.00040838,30]
[311198312,1704979861226,-2739.7831067,0.00040872,2]
[311198313,1704979861236,-964.2600412,0.00040872,2]
[311198314,1704979861246,-2244.4674678,0.00040872,2]
[311198315,1704979861255,-1960.1369847,0.00040872,2]
[311198316,1704979861266,-1385.8409923,0.00040872,2]
[311198317,1704979861277,-344.74737928,0.00040877,4]
[311198318,1704979861286,-2548.35015776,0.00040877,4]
[311198319,1704979861296,-2500.0,0.00040877,2]
[311198320,1704979861311,-697.8377058,0.00040877,4]
[311198321,1704979861326,-202.2190667,0.00040877,4]
[311198322,1704979861340,-303.43373299,0.00040877,4]
[311198323,1704979861355,-2903.01609823,0.00040877,4]
[311198324,1704979861367,-3613.76151731,0.00040877,4]
[311198325,1704979861379,-1138.9944831,0.00040877,4]
[311198326,1704979861393,-1261.5058193,0.00040877,2]
[311198327,1704979861406,-3046.74010663,0.00040889,4]
[311198328,1704979861420,-221.42704534,0.00040889,2]
[311198329,1704979861436,-567.40111,0.00040898,6]
[311198330,1704979861450,-155.31360228,0.00040899,4]
[311198331,1704979861463,-1841.69,0.000409,5]
[311198332,1704979861474,-2048.0,0.000409,5]
[311198333,1704979861487,-1000.0,0.000409,2]
[311198334,1704979861500,-209.0,0.000409,2]
[311198335,1704979861512,-214.0,0.000409,2]
[311198336,1704979861524,-210.0,0.000409,2]
[311198337,1704979861537,-210.0,0.000409,2]
[311198338,1704979861551,-210.0,0.000409,2]
[311198339,1704979861564,-210.0,0.000409,2]
[311198340,1704979861574,-209.0,0.000409,2]
[311198341,1704979861587,-214.0,0.000409,2]
[311198342,1704979861601,-105404.04828092,0.000409,7]
[311198343,1704979861614,-1545.64420957,0.000409,15]
[311198344,1704979861629,-150.0,0.000409,13]
[311198345,1704979861643,-305.038798,0.000409,13]
[311198346,1704979861655,-151.0,0.000409,7]
[311198347,1704979861669,-151.0,0.000409,7]
[311198348,1704979861684,-230.27573,0.000409,7]
[311198349,1704979861699,-230.27573,0.000409,7]
[311198350,1704979861713,-150.0,0.000409,13]
[311198351,1704979861728,-1966.56789,0.000409,13]
[311198352,1704979861742,-288.06509439,0.000409,10]
[311198353,1704979861754,-151.0,0.000409,7]
[311198354,1704979861765,-151.0,0.000409,7]
[311198355,1704979861776,-214.033284,0.000409,7]
[311198356,1704979861789,-300.0,0.000409,16]
[311198357,1704979861803,-150.0,0.000409,13]
[311198358,1704979861816,-150.0,0.000409,12]
[311198359,1704979861828,-210.0,0.000409,2]
[311198360,1704979861843,-209.0,0.000409,2]
[311198361,1704979861854,-150.0,0.000409,3]
[311198362,1704979861866,-220.79426589,0.000409,2]
[311198363,1704979861877,-221.92552106,0.000409,2]
[311198364,1704979861891,-1641.99903377,0.000409,2]
[311198365,1704979861903,-194.801,0.000409,7]
[311198366,1704979861915,-194.801,0.000409,7]
[311198367,1704979861928,-1250.34,0.00040935,7]
[311198368,1704979861942,-1250.34,0.00040935,7]
[311198369,1704979861955,-165.291573,0.00040939,2]
[311198370,1704979861966,-176.34899209,0.00040959,7]
[311198371,1704979861978,-414.22,0.0004096,2]
[311198372,1704979861990,-152.0,0.00040986,4]
[311198373,1704979862003,-500.0,0.00040987,40]
[311198374,1704979862016,-200.0,0.00040987,20]
[311198375,1704979862028,-300.0,0.00040987,3]
[311198376,1704979862040,-500.0,0.00040987,2]
[311198377,1704979862053,-3186.0,0.0004099,3]
[311198378,1704979862065,-322.15297897,0.00040995,33]
[311198379,1704979862077,-194.451,0.00040999,7]
[311198380,1704979862089,-150.0,0.00040999,3]
[311198381,1704979862102,-150.0,0.00040999,3]
[311198382,1704979862114,-100000.0,0.00041,3]
[311198383,1704979862126,-800.0,0.00041,2]
[311198384,1704979862138,-60000.0,0.00041,4]
[311198385,1704979862152,-249.34166615,0.00041,7]
[311198386,1704979862164,-59207.67176364,0.00041,30]
[311198387,1704979862176,-300.0,0.00041,42]
[311198388,1704979862192,-589551.96271004,0.00041,2]
[311198389,1704979862432,-543.27651648,0.00041,2]
[311198390,1704979862592,-0.04379855,0.00041,2]
[311198391,1704979862604,-1005.62549095,0.00041,2]
[311198392,1704979862618,-2006.4094831,0.00041,2]
[311198393,1704979862634,-1029.33600003,0.00041,2]
[311198394,1704979862647,-10934.6594834,0.00041,2]
[311198395,1704979862676,-500.0,0.00039452,4]
[311198396,1704979862691,-6633.400015,0.00041,2]
[311198397,1704979862959,-333.7971559,0.00029035,2]
[311198398,1704979862973,-454.56000002,0.00029035,2]
[311198399,1704979862985,-265.33,0.00029035,2]
[311198400,1704979862997,-310.81937877,0.00029035,2]
[311198401,1704979863007,-500.0,0.00039178,4]
[311198402,1704979863018,-500.0,0.00039178,4]
[311198403,1704979863028,-500.0,0.00039452,4]
[311198404,1704979863039,-500.0,0.00039726,4]
[311198405,1704979863050,-500.0,0.00039726,4]
[311198406,1704979863061,-500.0,0.00039726,4]
[311198407,1704979863376,-407.07,0.0004,4]
[311198408,1704979863396,-500.0,0.0004,4]
[311198409,1704979863414,-500.0,0.0004,4]
[311198410,1704979863430,-500.0,0.00040273,4]
[311198411,1704979863446,-212.19,0.00040273,4]
[311198412,1704979863456,-500.0,0.00040547,4]
[311198413,1704979863466,-436.68391034,0.00040821,4]
[311198414,1704979863476,-7330.05437293,0.00041,2]
[311198415,1704979863488,-2299.73832,0.00041,2]
[311198416,1704979863500,-1168.78248692,0.00041,2]
[311198417,1704979863511,-7232.1058373,0.00041,2]
[311198418,1704979863523,-2575.55334972,0.00041,2]
[311198419,1704979863596,-1398.98825217,0.00041,2]
[311198420,1704979863738,-626.35,0.00039178,4]
[311198421,1704979863747,-500.0,0.00039178,4]
[311198422,1704979863756,-4841.24900083,0.00041,2]
[311198423,1704979863768,-12593.81239163,0.00041,2]
[311198424,1704979863777,-15000.0,0.00041,30]
[311198425,1704979863786,-3438.85999802,0.00041,4]
[311198426,1704979863796,-2282.24,0.00041,7]
[311198427,1704979863805,-216.48581901,0.00041,30]
[311198428,1704979863815,-21922.38580964,0.00041,11]
[311198429,1704979863826,-324.36462974,0.00041,11]
[311198430,1704979863892,-327.52,0.00041,11]
[311198431,1704979863908,-619.06,0.00039178,4]
[311198432,1704979863917,-3192.60661362,0.00041,11]
[311198433,1704979863926,-897.0,0.00041,50]
[311198434,1704979863938,-151.0,0.00041,7]
[311198435,1704979863947,-151.0,0.00041,7]
[311198436,1704979863957,-230.27573,0.00041,7]
[311198437,1704979863966,-209.57660545,0.00041,7]
[311198438,1704979863977,-20.69912455,0.00041,7]
[311198439,1704979863986,-151.0,0.00041,7]
[311198440,1704979863995,-2826.17800301,0.00041,120]
[311198441,1704979864008,-2173.82199699,0.00041,120]
[311198442,1704979864017,-151.0,0.00041,7]
[311198443,1704979864027,-194.801,0.00041,7]
[311198444,1704979864037,-194.801,0.00041,7]
[311198445,1704979864047,-168.71222685,0.00041004,30]
[311198446,1704979864056,-150.26583463,0.00041021,4]
[311198447,1704979864072,-349.73416537,0.00041021,4]
[311198448,1704979864081,-500.0,0.00041021,4]
[311198449,1704979864090,-500.0,0.00041021,4]
[311198450,1704979864100,-500.0,0.00041021,4]
[311198451,1704979864109,-500.0,0.00041021,4]
[311198452,1704979864119,-150.0,0.00041051,3]
[311198453,1704979864128,-150.0,0.00041051,3]
[311198454,1704979864137,-150.0,0.00041068,120]
[311198455,1704979864147,-150.0,0.00041068,120]
[311198456,1704979864157,-303.0,0.00041068,120]
[311198457,1704979864166,-400.0,0.0004107,3]
[311198458,1704979864176,-774.0,0.0004107,120]
[311198459,1704979864189,-545.0,0.0004107,120]
[311198460,1704979864198,-362.0,0.0004107,120]
[311198461,1704979864207,-217.0,0.0004107,120]
[311198462,1704979864216,-788.0,0.0004107,120]
[311198463,1704979864225,-593.0,0.0004107,120]
[311198464,1704979864234,-419.0,0.0004107,120]
[311198465,1704979864244,-284.52,0.00041078,120]
[311198466,1704979864253,-150.0,0.00041078,120]
[311198467,1704979864264,-303.0,0.00041078,120]
[311198468,1704979864273,-774.0,0.0004108,120]
[311198469,1704979864283,-545.0,0.0004108,120]
[311198470,1704979864292,-362.0,0.0004108,120]
[311198471,1704979864303,-217.0,0.0004108,120]
[311198472,1704979864313,-788.0,0.0004108,120]
[311198473,1704979864322,-593.0,0.0004108,120]
[311198474,1704979864331,-419.0,0.0004108,120]
[311198475,1704979864340,-204.09366546,0.00041082,4]
[311198476,1704979864351,-22315.21375517,0.00041083,5]
[311198477,1704979864360,-942.75990621,0.00041084,30]
[311198478,1704979864370,-1326.31002168,0.00041084,30]
[311198479,1704979864380,-241.64091724,0.00041084,30]
[311198480,1704979864389,-903.81185693,0.00041084,30]
[311198481,1704979864399,-5385.61730523,0.00041084,30]
[311198482,1704979864408,-235.14230504,0.00041084,30]
[311198483,1704979864418,-201.41,0.00041088,120]
[311198484,1704979864427,-150.0,0.00041088,120]
[311198485,1704979864439,-150.0,0.00041088,120]
[311198486,1704979864449,-273.27,0.00041088,120]
[311198487,1704979864458,-303.0,0.00041088,120]
[311198488,1704979864467,-774.0,0.0004109,120]
[311198489,1704979864477,-545.0,0.0004109,120]
[311198490,1704979864486,-362.0,0.0004109,120]
[311198491,1704979864496,-217.0,0.0004109,120]
[311198492,1704979864505,-788.0,0.0004109,120]
[311198493,1704979864515,-593.0,0.0004109,120]
[311198494,1704979864524,-419.0,0.0004109,120]
[311198495,1704979864534,-500.0,0.00041095,2]
[311198496,1704979864544,-500.0,0.00041095,30]
[311198497,1704979864554,-1000.0,0.00041095,2]
[311198498,1704979864563,-214.14706651,0.00041095,2]
[311198499,1704979864573,-616.4,0.00041095,30]
[311198500,1704979864582,-500.0,0.00041095,30]
[311198501,1704979864592,-366.92,0.00041095,30]
[311198502,1704979864602,-500.0,0.00041095,30]
[311198503,1704979864611,-500.0,0.00041095,30]
[311198504,1704979864621,-500.0,0.00041095,30]
[311198505,1704979864631,-500.0,0.00041095,30]
[311198506,1704979864641,-500.0,0.00041095,30]
[311198507,1704979864651,-500.0,0.00041095,30]
[311198508,1704979864662,-3000.0,0.00041095,120]
[311198509,1704979864672,-500.0,0.00041095,30]
[311198510,1704979864682,-7021.77,0.00041095,30]
[311198511,1704979864697,-500.0,0.00041095,30]
[311198512,1704979864707,-293.28,0.00041095,30]
[311198513,1704979864716,-500.0,0.00041095,30]
[311198514,1704979864725,-794.87,0.00041095,30]
[311198515,1704979864735,-660.97,0.00041095,30]
[311198516,1704979864746,-502.12,0.00041095,30]
[311198517,1704979864757,-500.0,0.00041095,30]
[311198518,1704979864768,-500.0,0.00041095,30]
[311198519,1704979864778,-500.0,0.00041095,30]
[311198520,1704979864788,-88.17123557,0.00041095,30]
[311198521,1704979864809,-387.12876443,0.00041095,30]
[311198522,1704979864820,-500.0,0.00041095,30]
[311198523,1704979864830,-500.0,0.00041095,30]
[311198524,1704979864841,-500.0,0.00041095,30]
[311198525,1704979864852,-500.0,0.00041095,30]
[311198526,1704979864866,-230.4275,0.00041095,2]
[311198527,1704979864877,-460.855,0.00041095,2]
[311198528,1704979864887,-691.2825,0.00041095,2]
[311198529,1704979864897,-921.71,0.00041095,2]
[311198530,1704979864907,-1152.1375,0.00041095,2]
[311198531,1704979864919,-1382.565,0.00041095,2]
[311198532,1704979864929,-1612.9925,0.00041095,2]
[311198533,1704979864944,-1843.42,0.00041095,2]
[311198534,1704979864955,-2073.8475,0.00041095,2]
[311198535,1704979864965,-2304.275,0.00041095,2]
[311198536,1704979864975,-2534.7025,0.00041095,2]
[311198537,1704979864984,-2765.13,0.00041095,2]
[311198538,1704979864994,-2995.5575,0.00041095,2]
[311198539,1704979865005,-1152.22655856,0.00041095,2]
[311198540,1704979865014,-518.45,0.00041095,30]
[311198541,1704979865024,-1164.67,0.00041095,30]
[311198542,1704979865035,-500.0,0.00041095,30]
[311198543,1704979865045,-1105.32,0.00041095,30]
[311198544,1704979865055,-854.35,0.00041095,30]
[311198545,1704979865065,-500.0,0.00041095,30]
[311198546,1704979865076,-500.0,0.00041095,30]
[311198547,1704979865087,-500.0,0.00041095,30]
[311198548,1704979865097,-500.0,0.00041095,30]
[311198549,1704979865108,-500.0,0.00041095,30]
[311198550,1704979865119,-500.0,0.00041095,30]
[311198551,1704979865130,-500.0,0.00041095,30]
[311198552,1704979865140,-500.0,0.00041095,30]
[311198553,1704979865151,-500.0,0.00041095,30]
[311198554,1704979865161,-312.84874942,0.00041095,30]
[311198555,1704979865171,-1812.54,0.00041095,10]
[311198556,1704979865182,-1812.54,0.00041095,10]
[311198557,1704979865198,-1812.54,0.00041095,10]
[311198558,1704979865208,-1812.54,0.00041095,10]
[311198559,1704979865219,-500.0,0.00041095,30]
[311198560,1704979865229,-1812.54,0.00041095,10]
[311198561,1704979865240,-1812.54,0.00041095,10]
[311198562,1704979865250,-1812.54,0.00041095,10]
[311198563,1704979865260,-1812.54,0.00041095,10]
[311198564,1704979865270,-500.0,0.00041095,30]
[311198565,1704979865280,-500.0,0.00041095,30]
[311198566,1704979865291,-2484.37,0.00041095,30]
[311198567,1704979865301,-408.02,0.00041095,30]
[311198568,1704979865312,-165.61,0.00041095,30]
[311198569,1704979865322,-1838.54,0.00041095,30]
[311198570,1704979865332,-500.0,0.00041095,30]
[311198571,1704979865342,-500.0,0.00041095,30]
[311198572,1704979865352,-835.03,0.00041095,30]
[311198573,1704979865362,-538.11,0.00041095,30]
[311198574,1704979865375,-502.96,0.00041095,30]
[311198575,1704979865385,-500.0,0.00041095,30]
[311198576,1704979865396,-513.38,0.00041095,30]
[311198577,1704979865407,-500.0,0.00041095,30]
[311198578,1704979865417,-500.0,0.00041095,30]
[311198579,1704979865427,-580.95,0.00041095,30]
[311198580,1704979865443,-1413.2,0.00041095,30]
[311198581,1704979865454,-500.0,0.00041095,30]
[311198582,1704979865466,-894.67,0.00041095,30]
[311198583,1704979865477,-1588.08,0.00041095,30]
[311198584,1704979865488,-500.0,0.00041095,5]
[311198585,1704979865499,-500.0,0.00041095,30]
[311198586,1704979865509,-534.67,0.00041095,30]
[311198587,1704979865521,-818.97,0.00041095,30]
[311198588,1704979865532,-557.1,0.00041095,30]
[311198589,1704979865543,-4016.32,0.00041095,30]
[311198590,1704979865555,-500.0,0.00041095,30]
[311198591,1704979865565,-500.0,0.00041095,30]
[311198592,1704979865576,-500.0,0.00041095,30]
[311198593,1704979865586,-500.0,0.00041095,30]
[311198594,1704979865597,-500.0,0.00041095,30]
[311198595,1704979865608,-500.0,0.00041095,30]
[311198596,1704979865619,-500.0,0.00041095,30]
[311198597,1704979865630,-630.06,0.00041095,30]
[311198598,1704979865642,-1262.12,0.00041095,30]
[311198599,1704979865652,-1205.92,0.00041095,30]
[311198600,1704979865664,-500.0,0.00041095,30]
[311198601,1704979865675,-500.0,0.00041095,30]
[311198602,1704979865690,-556.07,0.00041095,30]
[311198603,1704979865701,-500.0,0.00041095,30]
[311198604,1704979865713,-500.0,0.00041095,30]
[311198605,1704979865725,-500.0,0.00041095,30]
[311198606,1704979865736,-936.41,0.00041095,30]
[311198607,1704979865747,-500.0,0.00041095,30]
[311198608,1704979865758,-500.0,0.00041095,15]
[311198609,1704979865768,-500.0,0.00041095,15]
[311198610,1704979865779,-500.0,0.00041095,15]
[311198611,1704979865789,-500.0,0.00041095,15]
[311198612,1704979865800,-500.0,0.00041095,15]
[311198613,1704979865810,-507.76592665,0.00041095,15]
[311198614,1704979865820,-500.0,0.00041095,30]
[311198615,1704979865831,-684.95,0.00041095,30]
[311198616,1704979865841,-500.0,0.00041095,5]
[311198617,1704979865851,-5271.68,0.00041095,30]
[311198618,1704979865862,-600.36,0.00041095,30]
[311198619,1704979865872,-500.0,0.00041095,30]
[311198620,1704979865882,-217.66,0.00041095,30]
[311198621,1704979865892,-1590.5,0.00041095,30]
[311198622,1704979865902,-500.0,0.00041095,30]
[311198623,1704979865912,-747.7,0.00041095,30]
[311198624,1704979865922,-1763.92565879,0.00041095,10]
[311198625,1704979865931,-1530.69,0.00041095,30]
[311198626,1704979865945,-500.0,0.00041095,30]
[311198627,1704979865955,-235.90616722,0.00041096,2]
[311198628,1704979865965,-3725.88,0.00041096,2]
[311198629,1704979865975,-180.0,0.00041096,2]
[311198630,1704979865985,-567.40111,0.00041098,8]
[311198631,1704979865996,-3104.0,0.000411,5]
[311198632,1704979866005,-1276.0,0.000411,30]
[311198633,1704979866015,-150.0,0.00041102,3]
[311198634,1704979866025,-150.0,0.00041102,3]
[311198635,1704979866035,-500.0,0.0004115,2]
[311198636,1704979866045,-150.0,0.00041154,3]
[311198637,1704979866055,-150.0,0.00041154,3]
[311198638,1704979866065,-917.99907732,0.00041161,2]
[311198639,1704979866075,-200.0,0.00041161,2]
[311198640,1704979866085,-414.22,0.00041162,2]
[311198641,1704979866095,-500.0,0.00041205,2]
[311198642,1704979866104,-150.0,0.00041206,3]
[311198643,1704979866114,-150.0,0.00041206,3]
[311198644,1704979866124,-1250.34,0.00041208,7]
[311198645,1704979866133,-1250.34,0.00041208,7]
[311198646,1704979866143,-3000.0,0.00041232,120]
[311198647,1704979866153,-7841.66024982,0.00041234,31]
[311198648,1704979866163,-3584.28679271,0.00041239,2]
[311198649,1704979866173,-436.07,0.00041239,2]
[311198650,1704979866183,-353.0,0.00041254,30]
[311198651,1704979866199,-150.0,0.00041257,3]
[311198652,1704979866209,-150.0,0.00041257,3]
[311198653,1704979866219,-2137.94997558,0.00041258,20]
[311198654,1704979866229,-500.11070704,0.0004126,2]
[311198655,1704979866241,-1000.0,0.00041287,30]
[311198656,1704979866251,-1000.0,0.00041287,30]
[311198657,1704979866262,-1000.0,0.00041287,30]
[311198658,1704979866275,-1000.0,0.00041287,30]
[311198659,1704979866286,-1000.0,0.00041287,30]
[311198660,1704979866296,-1000.0,0.00041287,30]
[311198661,1704979866307,-382.15030426,0.00041287,30]
[311198662,1704979866318,-567.40111,0.00041298,8]
[311198663,1704979866328,-2282.24,0.000413,7]
[311198664,1704979866338,-150.0,0.00041309,3]
[311198665,1704979866348,-150.0,0.00041309,3]
[311198666,1704979866358,-150.0,0.00041319,30]
[311198667,1704979866369,-151.22078083,0.00041321,11]
[311198668,1704979866380,-150.0,0.00041361,3]
[311198669,1704979866390,-150.0,0.00041361,3]
[311198670,1704979866400,-414.22,0.00041364,2]
[311198671,1704979866410,-354.39080222,0.00041369,30]
[311198672,1704979866419,-500.0,0.00041369,30]
[311198673,1704979866429,-500.0,0.00041369,30]
[311198674,1704979866443,-500.0,0.00041369,30]
[311198675,1704979866454,-390.02,0.00041369,30]
[311198676,1704979866465,-500.0,0.00041369,30]
[311198677,1704979866476,-500.0,0.00041369,30]
[311198678,1704979866487,-500.0,0.00041369,30]
[311198679,1704979866498,-2564.85298841,0.00041369,120]
[311198680,1704979866509,-156.15,0.00041369,30]
[311198681,1704979866520,-7021.77,0.00041369,30]
[311198682,1704979866530,-500.0,0.00041369,30]
[311198683,1704979866541,-500.0,0.00041369,30]
[311198684,1704979866551,-794.87,0.00041369,30]
[311198685,1704979866561,-660.97,0.00041369,30]
[311198686,1704979866571,-502.12,0.00041369,30]
[311198687,1704979866582,-500.0,0.00041369,30]
[311198688,1704979866593,-500.0,0.00041369,30]
[311198689,1704979866603,-500.0,0.00041369,30]
[311198690,1704979866614,-225.51,0.00041369,30]
[311198691,1704979866625,-500.0,0.00041369,30]
[311198692,1704979866635,-500.0,0.00041369,30]
[311198693,1704979866646,-500.0,0.00041369,30]
[311198694,1704979866656,-1164.67,0.00041369,30]
[311198695,1704979866666,-381.58,0.00041369,30]
[311198696,1704979866677,-1105.32,0.00041369,30]
[311198697,1704979866692,-854.35,0.00041369,30]
[311198698,1704979866702,-500.0,0.00041369,30]
[311198699,1704979866713,-500.0,0.00041369,30]
[311198700,1704979866723,-500.0,0.00041369,30]
[311198701,1704979866734,-500.0,0.00041369,30]
[311198702,1704979866745,-463.28,0.00041369,30]
[311198703,1704979866754,-500.0,0.00041369,30]
[311198704,1704979866765,-500.0,0.00041369,30]
[311198705,1704979866775,-500.0,0.00041369,30]
[311198706,1704979866786,-500.0,0.00041369,30]
[311198707,1704979866796,-316.81,0.00041369,30]
[311198708,1704979866805,-1812.54,0.00041369,10]
[311198709,1704979866815,-500.0,0.00041369,30]
[311198710,1704979866824,-551.93,0.00041369,30]
[311198711,1704979866834,-2484.37,0.00041369,30]
[311198712,1704979866845,-1838.54,0.00041369,30]
[311198713,1704979866854,-500.0,0.00041369,30]
[311198714,1704979866864,-396.44,0.00041369,30]
[311198715,1704979866874,-538.11,0.00041369,30]